[Event "Late-Titled-Tuesday-Blitz-October-17-2023"]
[Site "Chess.com"]
[Date "2023.10.17"]
[Round "4"]
[White "Semetey"]
[Black "gmcorrales"]
[Result "0-1"]
[WhiteElo "2549"]
[BlackElo "2850"]
[TimeControl "180+1"]
[EndTime "14:38:59 PDT"]
[Termination "gmcorrales won by resignation"]

1. a3 {[%clk 0:03:00.9]} 1... d5 {[%clk 0:02:58.6]} 2. d4 {[%clk 0:03:00.4]}
2... Bf5 {[%clk 0:02:52.4]} 3. Bf4 {[%clk 0:02:59.7]} 3... e6 {[%clk 0:02:52.4]}
4. e3 {[%clk 0:02:59.5]} 4... Bd6 {[%clk 0:02:52.7]} 5. Nf3 {[%clk 0:02:58.7]}
5... Bxf4 {[%clk 0:02:52.5]} 6. exf4 {[%clk 0:02:58.3]} 6... Nf6 {[%clk
0:02:53.1]} 7. Nbd2 {[%clk 0:02:57.4]} 7... h6 {[%clk 0:02:52.6]} 8. Ne5 {[%clk
0:02:52.2]} 8... O-O {[%clk 0:02:51.5]} 9. Ndf3 {[%clk 0:02:52]} 9... Be4 {[%clk
0:02:34.9]} 10. Be2 {[%clk 0:02:51.2]} 10... Bxf3 {[%clk 0:02:32.7]} 11. Bxf3
{[%clk 0:02:50.6]} 11... c6 {[%clk 0:02:27.8]} 12. Qd3 {[%clk 0:02:47.5]} 12...
Nbd7 {[%clk 0:02:25.4]} 13. g4 {[%clk 0:02:46.3]} 13... c5 {[%clk 0:02:19.5]}
14. g5 {[%clk 0:02:44.2]} 14... hxg5 {[%clk 0:02:17.1]} 15. fxg5 {[%clk
0:02:44.2]} 15... Nxe5 {[%clk 0:02:15.7]} 16. dxe5 {[%clk 0:02:42.1]} 16... Nd7
{[%clk 0:02:14.8]} 17. Qe3 {[%clk 0:02:41.6]} 17... Qc7 {[%clk 0:02:13.8]} 18.
O-O-O {[%clk 0:02:35.1]} 18... Qxe5 {[%clk 0:02:10.2]} 19. Qd2 {[%clk
0:02:35.3]} 19... Qf5 {[%clk 0:02:05.4]} 20. Bg2 {[%clk 0:02:32.5]} 20... Ne5
{[%clk 0:02:05.6]} 21. f4 {[%clk 0:02:27.8]} 21... Ng6 {[%clk 0:01:50.3]} 22.
Rdf1 {[%clk 0:02:27.6]} 22... Nh4 {[%clk 0:01:45.7]} 23. Qf2 {[%clk 0:02:24.8]}
23... Nxg2 {[%clk 0:01:43.3]} 24. Qxg2 {[%clk 0:02:25.7]} 24... b5 {[%clk
0:01:42.5]} 25. Rf3 {[%clk 0:02:10.5]} 25... b4 {[%clk 0:01:39.6]} 26. a4 {[%clk
0:02:02.4]} 26... c4 {[%clk 0:01:38.9]} 27. Re1 {[%clk 0:02:01.9]} 27... b3
{[%clk 0:01:13.1]} 28. c3 {[%clk 0:01:51.6]} 28... Rad8 {[%clk 0:00:43]} 29. Re5
{[%clk 0:01:50.5]} 29... Qg6 {[%clk 0:00:42.9]} 30. h4 {[%clk 0:00:56.7]} 30...
d4 {[%clk 0:00:41.5]} 31. h5 {[%clk 0:00:56.9]} 31... Qxh5 {[%clk 0:00:33.3]}
32. Rh3 {[%clk 0:00:56.3]} 32... Qg6 {[%clk 0:00:33.2]} 33. f5 {[%clk
0:00:49.5]} 33... exf5 {[%clk 0:00:33.5]} 34. Qh2 {[%clk 0:00:49.7]} 34... Qxg5+
{[%clk 0:00:33.3]} 35. Kb1 {[%clk 0:00:49.8]} 35... g6 {[%clk 0:00:23]} 36. Re1
{[%clk 0:00:31.4]} 36... f4 {[%clk 0:00:14.4]} 37. cxd4 {[%clk 0:00:13.1]} 37...
Kg7 {[%clk 0:00:10.4]} 38. Rh7+ {[%clk 0:00:12.3]} 38... Kf6 {[%clk 0:00:10.4]}
39. Rf1 {[%clk 0:00:12.8]} 39... Rxd4 {[%clk 0:00:09.9]} 40. Rh4 {[%clk
0:00:07.6]} 40... Rfd8 {[%clk 0:00:08.8]} 41. Rhxf4+ {[%clk 0:00:06.6]} 41...
Rxf4 {[%clk 0:00:09.7]} 42. Qh1 {[%clk 0:00:04.9]} 42... Qf5+ {[%clk 0:00:09.6]}
0-1

[Event "Late-Titled-Tuesday-Blitz-October-17-2023"]
[Site "Chess.com"]
[Date "2023.10.17"]
[Round "4"]
[White "ozates"]
[Black "Necromon"]
[Result "1-0"]
[WhiteElo "2712"]
[BlackElo "2503"]
[TimeControl "180+1"]
[EndTime "14:38:59 PDT"]
[Termination "ozates won on time"]

1. g3 {[%clk 0:02:57.7]} 1... e6 {[%clk 0:02:58.4]} 2. Bg2 {[%clk 0:02:57.8]}
2... Nf6 {[%clk 0:02:58.8]} 3. Nf3 {[%clk 0:02:54.8]} 3... d5 {[%clk 0:02:58.6]}
4. O-O {[%clk 0:02:55.5]} 4... Be7 {[%clk 0:02:59]} 5. d3 {[%clk 0:02:56.3]}
5... O-O {[%clk 0:02:59.1]} 6. Nbd2 {[%clk 0:02:57.1]} 6... c5 {[%clk
0:02:59.4]} 7. e4 {[%clk 0:02:58]} 7... dxe4 {[%clk 0:02:58.8]} 8. dxe4 {[%clk
0:02:57.4]} 8... Nc6 {[%clk 0:02:58.8]} 9. Qe2 {[%clk 0:02:57.1]} 9... b6 {[%clk
0:02:54.9]} 10. Rd1 {[%clk 0:02:53.7]} 10... Bb7 {[%clk 0:02:53]} 11. Nc4 {[%clk
0:02:52.9]} 11... Qc8 {[%clk 0:02:51.4]} 12. Bf4 {[%clk 0:02:50.8]} 12... Nh5
{[%clk 0:02:40.9]} 13. Bd6 {[%clk 0:02:50.3]} 13... Ba6 {[%clk 0:02:30.1]} 14.
e5 {[%clk 0:02:14.8]} 14... g6 {[%clk 0:02:12.1]} 15. Nfd2 {[%clk 0:02:06.9]}
15... Bxd6 {[%clk 0:01:55.4]} 16. exd6 {[%clk 0:02:05.1]} 16... Nd4 {[%clk
0:01:55.3]} 17. Qe4 {[%clk 0:01:57.1]} 17... Rb8 {[%clk 0:01:55.4]} 18. c3
{[%clk 0:01:55.7]} 18... Bb7 {[%clk 0:01:54]} 19. Qd3 {[%clk 0:01:48.8]} 19...
Bxg2 {[%clk 0:01:44.2]} 20. Kxg2 {[%clk 0:01:49.7]} 20... Nc6 {[%clk 0:01:44.7]}
21. Ne4 {[%clk 0:01:44.8]} 21... f5 {[%clk 0:01:39.4]} 22. Ng5 {[%clk
0:01:32.1]} 22... Qd7 {[%clk 0:01:32.5]} 23. Qe3 {[%clk 0:01:28.6]} 23... Nf6
{[%clk 0:01:18]} 24. Qxe6+ {[%clk 0:01:16]} 24... Qxe6 {[%clk 0:01:09.9]} 25.
Nxe6 {[%clk 0:01:16.9]} 25... Rfe8 {[%clk 0:00:59.5]} 26. Nf4 {[%clk 0:01:12]}
26... Rbd8 {[%clk 0:00:51.4]} 27. a4 {[%clk 0:01:11.7]} 27... Kf7 {[%clk
0:00:36.6]} 28. Rd3 {[%clk 0:01:06.5]} 28... g5 {[%clk 0:00:35.5]} 29. Nd5
{[%clk 0:01:04.2]} 29... Re2 {[%clk 0:00:32.8]} 30. Rad1 {[%clk 0:00:48.1]}
30... Ne4 {[%clk 0:00:25.7]} 31. Rf3 {[%clk 0:00:44.5]} 31... Kg6 {[%clk
0:00:20.2]} 32. b4 {[%clk 0:00:27.1]} 32... h5 {[%clk 0:00:12.9]} 33. b5 {[%clk
0:00:26.9]} 33... Na5 {[%clk 0:00:11.7]} 34. Ne5+ {[%clk 0:00:26.4]} 34... Kh7
{[%clk 0:00:09.8]} 35. Rxf5 {[%clk 0:00:23]} 35... Rxd6 {[%clk 0:00:10.2]} 36.
Rf7+ {[%clk 0:00:22.1]} 36... Kh8 {[%clk 0:00:09.2]} 37. Kf3 {[%clk 0:00:11.9]}
37... Rxf2+ {[%clk 0:00:08]} 38. Kxe4 {[%clk 0:00:12]} 38... Re2+ {[%clk
0:00:03.6]} 39. Kf5 {[%clk 0:00:10.8]} 1-0

[Event "Late-Titled-Tuesday-Blitz-October-17-2023"]
[Site "Chess.com"]
[Date "2023.10.17"]
[Round "4"]
[White "mind1mover"]
[Black "GM_dmitrij"]
[Result "1-0"]
[WhiteElo "2913"]
[BlackElo "3036"]
[TimeControl "180+1"]
[EndTime "14:39:00 PDT"]
[Termination "mind1mover won on time"]

1. Nf3 {[%clk 0:03:00.9]} 1... Nf6 {[%clk 0:02:56.2]} 2. b3 {[%clk 0:03:01.1]}
2... d5 {[%clk 0:02:55.4]} 3. Bb2 {[%clk 0:03:01.5]} 3... Bg4 {[%clk 0:02:55.9]}
4. e3 {[%clk 0:02:58.7]} 4... Nbd7 {[%clk 0:02:55.5]} 5. c4 {[%clk 0:02:58.6]}
5... e6 {[%clk 0:02:55.3]} 6. cxd5 {[%clk 0:02:57.6]} 6... exd5 {[%clk
0:02:55.4]} 7. Be2 {[%clk 0:02:57]} 7... c6 {[%clk 0:02:48.1]} 8. h3 {[%clk
0:02:55.5]} 8... Bh5 {[%clk 0:02:46]} 9. a3 {[%clk 0:02:51.8]} 9... Be7 {[%clk
0:02:43.9]} 10. d3 {[%clk 0:02:50.7]} 10... O-O {[%clk 0:02:40.2]} 11. Nbd2
{[%clk 0:02:50.3]} 11... a5 {[%clk 0:02:34.9]} 12. O-O {[%clk 0:02:50.3]} 12...
Re8 {[%clk 0:02:33.7]} 13. Re1 {[%clk 0:02:50.5]} 13... h6 {[%clk 0:02:22.8]}
14. Qc2 {[%clk 0:02:41.9]} 14... Nf8 {[%clk 0:02:11.6]} 15. Bc3 {[%clk
0:02:36.7]} 15... Ne6 {[%clk 0:02:09.9]} 16. b4 {[%clk 0:02:33.1]} 16... axb4
{[%clk 0:02:00.9]} 17. axb4 {[%clk 0:02:34]} 17... Qb6 {[%clk 0:02:01.4]} 18.
Qb2 {[%clk 0:02:26.2]} 18... Nc7 {[%clk 0:01:56]} 19. Reb1 {[%clk 0:02:05.3]}
19... Nb5 {[%clk 0:01:53.5]} 20. Be5 {[%clk 0:02:04.9]} 20... Kh7 {[%clk
0:01:31.5]} 21. Nb3 {[%clk 0:01:16.4]} 21... Nd7 {[%clk 0:01:21.8]} 22. Bxg7
{[%clk 0:01:12.4]} 22... f6 {[%clk 0:01:21.3]} 23. Nc5 {[%clk 0:01:07]} 23...
Rxa1 {[%clk 0:00:58.6]} 24. Rxa1 {[%clk 0:01:05.6]} 24... Nxc5 {[%clk
0:00:54.7]} 25. bxc5 {[%clk 0:01:04.5]} 25... Qd8 {[%clk 0:00:55.3]} 26. Nh4
{[%clk 0:00:51.3]} 26... Bxe2 {[%clk 0:00:45.4]} 27. Qxe2 {[%clk 0:00:52.2]}
27... Rg8 {[%clk 0:00:35.2]} 28. Bxh6 {[%clk 0:00:42]} 28... Qe8 {[%clk
0:00:18.7]} 29. Bf4 {[%clk 0:00:41.1]} 29... Bxc5 {[%clk 0:00:16.8]} 30. d4
{[%clk 0:00:35.7]} 30... Bd6 {[%clk 0:00:11.2]} 31. Qd3+ {[%clk 0:00:28.3]}
31... Qe4 {[%clk 0:00:10.9]} 32. Qd1 {[%clk 0:00:05.2]} 32... Bxf4 {[%clk
0:00:07.1]} 33. exf4 {[%clk 0:00:06.1]} 33... Nxd4 {[%clk 0:00:03.5]} 34. Qh5+
{[%clk 0:00:05.9]} 34... Kg7 {[%clk 0:00:04]} 35. f5 {[%clk 0:00:02.5]} 35...
Kf8 {[%clk 0:00:02.8]} 36. Ra8+ {[%clk 0:00:01.5]} 1-0

[Event "Late-Titled-Tuesday-Blitz-October-17-2023"]
[Site "Chess.com"]
[Date "2023.10.17"]
[Round "4"]
[White "karinachess1"]
[Black "kiwibobo"]
[Result "1-0"]
[WhiteElo "2609"]
[BlackElo "2303"]
[TimeControl "180+1"]
[EndTime "14:39:01 PDT"]
[Termination "karinachess1 won by resignation"]

1. d4 {[%clk 0:03:00.9]} 1... Nf6 {[%clk 0:02:58.9]} 2. c4 {[%clk 0:03:01.2]}
2... g6 {[%clk 0:02:57.5]} 3. g3 {[%clk 0:03:01.6]} 3... c6 {[%clk 0:02:56.9]}
4. Bg2 {[%clk 0:03:00]} 4... d5 {[%clk 0:02:56.9]} 5. b3 {[%clk 0:03:00.6]} 5...
Bg7 {[%clk 0:02:45.5]} 6. Nf3 {[%clk 0:03:00.8]} 6... O-O {[%clk 0:02:43.3]} 7.
O-O {[%clk 0:03:01]} 7... dxc4 {[%clk 0:02:42.8]} 8. bxc4 {[%clk 0:03:01.9]}
8... c5 {[%clk 0:02:43.5]} 9. Bb2 {[%clk 0:03:02.4]} 9... cxd4 {[%clk
0:02:43.3]} 10. Nxd4 {[%clk 0:03:03.3]} 10... Qb6 {[%clk 0:02:42.2]} 11. Qc1
{[%clk 0:02:57.4]} 11... Bd7 {[%clk 0:02:33.7]} 12. Rd1 {[%clk 0:02:36.9]} 12...
Nc6 {[%clk 0:02:30.8]} 13. c5 {[%clk 0:02:37]} 13... Qc7 {[%clk 0:02:30.5]} 14.
Nb5 {[%clk 0:02:32.7]} 14... Qc8 {[%clk 0:02:19.5]} 15. N1c3 {[%clk 0:02:17.5]}
15... a6 {[%clk 0:02:17.8]} 16. Na3 {[%clk 0:02:09.7]} 16... Na5 {[%clk
0:01:57.4]} 17. Qe3 {[%clk 0:01:57.5]} 17... e5 {[%clk 0:01:08.2]} 18. Rac1
{[%clk 0:01:41.5]} 18... Bc6 {[%clk 0:00:53.8]} 19. Qxe5 {[%clk 0:01:37.2]}
19... Bxg2 {[%clk 0:00:49.2]} 20. Kxg2 {[%clk 0:01:38.1]} 20... Qc6+ {[%clk
0:00:47.2]} 21. Kg1 {[%clk 0:01:33.1]} 21... Ne4 {[%clk 0:00:41.5]} 22. Qf4
{[%clk 0:00:55.3]} 22... Nxc5 {[%clk 0:00:29.3]} 23. Nd5 {[%clk 0:00:54.4]}
23... Ne6 {[%clk 0:00:17]} 24. Ne7+ {[%clk 0:00:42.2]} 24... Kh8 {[%clk
0:00:16.9]} 25. Bxg7+ {[%clk 0:00:43.1]} 25... Kxg7 {[%clk 0:00:15.9]} 26. Qe5+
{[%clk 0:00:38.8]} 26... f6 {[%clk 0:00:15.8]} 27. Nxc6 {[%clk 0:00:38.3]} 27...
fxe5 {[%clk 0:00:15.8]} 28. Nxa5 {[%clk 0:00:38.8]} 28... Rac8 {[%clk
0:00:14.1]} 29. Nxb7 {[%clk 0:00:36.8]} 29... Rxc1 {[%clk 0:00:13.7]} 30. Rxc1
{[%clk 0:00:37.7]} 30... Rb8 {[%clk 0:00:13.8]} 31. Nc5 {[%clk 0:00:27.3]} 31...
Nd4 {[%clk 0:00:13.7]} 32. Kf1 {[%clk 0:00:21.5]} 32... Rb2 {[%clk 0:00:14]} 33.
Nc4 {[%clk 0:00:21.4]} 33... Rxa2 {[%clk 0:00:12.7]} 34. Nxe5 {[%clk 0:00:17.7]}
34... Rxe2 {[%clk 0:00:12.7]} 35. Ne6+ {[%clk 0:00:17.8]} 35... Kf6 {[%clk
0:00:09.8]} 36. Nxd4 {[%clk 0:00:18]} 36... Rxe5 {[%clk 0:00:10.3]} 37. Rc6+
{[%clk 0:00:17.9]} 37... Kg7 {[%clk 0:00:10.4]} 38. Rxa6 {[%clk 0:00:18]} 38...
Re4 {[%clk 0:00:11]} 39. Nf3 {[%clk 0:00:18.2]} 39... Rc4 {[%clk 0:00:11.1]} 40.
Kg2 {[%clk 0:00:18.7]} 40... Rc2 {[%clk 0:00:11.3]} 41. h4 {[%clk 0:00:19.1]}
41... h5 {[%clk 0:00:11.7]} 42. Ng5 {[%clk 0:00:18.7]} 42... Kh6 {[%clk
0:00:10.7]} 43. Ra8 {[%clk 0:00:16.1]} 43... Rc5 {[%clk 0:00:09.9]} 44. Ra7
{[%clk 0:00:13.3]} 44... Rc7 {[%clk 0:00:07.5]} 45. Nf7+ {[%clk 0:00:13]} 45...
Rxf7 {[%clk 0:00:02.7]} 46. Rxf7 {[%clk 0:00:13.9]} 1-0

[Event "Late-Titled-Tuesday-Blitz-October-17-2023"]
[Site "Chess.com"]
[Date "2023.10.17"]
[Round "4"]
[White "johnmez"]
[Black "NigelDwarf"]
[Result "0-1"]
[WhiteElo "2328"]
[BlackElo "2551"]
[TimeControl "180+1"]
[EndTime "14:39:06 PDT"]
[Termination "NigelDwarf won by checkmate"]

1. b3 {[%clk 0:02:57.2]} 1... e5 {[%clk 0:02:58.7]} 2. Bb2 {[%clk 0:02:57.5]}
2... Nc6 {[%clk 0:02:58.9]} 3. e3 {[%clk 0:02:56.4]} 3... d5 {[%clk 0:02:58.7]}
4. Bb5 {[%clk 0:02:55.5]} 4... Ne7 {[%clk 0:02:58.8]} 5. Bxe5 {[%clk 0:02:50]}
5... a6 {[%clk 0:02:58.3]} 6. Bxc6+ {[%clk 0:02:49.1]} 6... Nxc6 {[%clk
0:02:59]} 7. Bb2 {[%clk 0:02:48.6]} 7... Qg5 {[%clk 0:02:55.5]} 8. g3 {[%clk
0:02:34.2]} 8... h5 {[%clk 0:02:36.7]} 9. h4 {[%clk 0:02:23.4]} 9... Qg6 {[%clk
0:02:35.3]} 10. Nc3 {[%clk 0:02:19.2]} 10... Bg4 {[%clk 0:02:27.5]} 11. Nce2
{[%clk 0:01:41.6]} 11... O-O-O {[%clk 0:02:19.2]} 12. d4 {[%clk 0:01:29.7]}
12... Nb4 {[%clk 0:01:33.6]} 13. Kd2 {[%clk 0:01:24.7]} 13... c5 {[%clk
0:01:14.4]} 14. a3 {[%clk 0:01:11.7]} 14... Nc6 {[%clk 0:01:13.2]} 15. f3 {[%clk
0:00:57]} 15... Bf5 {[%clk 0:01:04.7]} 16. Rc1 {[%clk 0:00:55.1]} 16... Bd6
{[%clk 0:00:59.2]} 17. Nh3 {[%clk 0:00:49.4]} 17... Bxh3 {[%clk 0:00:51.4]} 18.
Rxh3 {[%clk 0:00:48.6]} 18... Rhe8 {[%clk 0:00:51.1]} 19. Qg1 {[%clk 0:00:40.1]}
19... Ne7 {[%clk 0:00:35.2]} 20. Nf4 {[%clk 0:00:37]} 20... Bxf4 {[%clk
0:00:34.8]} 21. gxf4 {[%clk 0:00:36.4]} 21... Qe6 {[%clk 0:00:35.4]} 22. Rh2
{[%clk 0:00:24.7]} 22... Nf5 {[%clk 0:00:34.5]} 23. Re1 {[%clk 0:00:22.8]} 23...
Rd7 {[%clk 0:00:29.3]} 24. Rhe2 {[%clk 0:00:19.8]} 24... Rde7 {[%clk 0:00:29.1]}
25. dxc5 {[%clk 0:00:19.5]} 25... Nxh4 {[%clk 0:00:25.8]} 26. Qg3 {[%clk
0:00:18.1]} 26... Nf5 {[%clk 0:00:25.5]} 27. Qg5 {[%clk 0:00:15.9]} 27... f6
{[%clk 0:00:24.6]} 28. Qxh5 {[%clk 0:00:13.6]} 28... Ng3 {[%clk 0:00:24.1]} 29.
Qg6 {[%clk 0:00:08.2]} 29... Nxe2 {[%clk 0:00:22.1]} 30. Rxe2 {[%clk 0:00:08.5]}
30... Qc6 {[%clk 0:00:14.5]} 31. Bd4 {[%clk 0:00:08.7]} 31... Qe6 {[%clk
0:00:11.4]} 32. Qd3 {[%clk 0:00:08.4]} 32... Qh3 {[%clk 0:00:10.7]} 33. a4
{[%clk 0:00:08]} 33... Kb8 {[%clk 0:00:10.4]} 34. c6 {[%clk 0:00:07.4]} 34...
Qxf3 {[%clk 0:00:08]} 35. Bc5 {[%clk 0:00:07.3]} 35... Re6 {[%clk 0:00:05.3]}
36. cxb7 {[%clk 0:00:05.8]} 36... Kxb7 {[%clk 0:00:05.7]} 37. Qc3 {[%clk
0:00:05.8]} 37... Qe4 {[%clk 0:00:05.6]} 38. Bd4 {[%clk 0:00:04.5]} 38... Rc8
{[%clk 0:00:05.3]} 39. Qb4+ {[%clk 0:00:04.5]} 39... Ka8 {[%clk 0:00:05.1]} 40.
Kc1 {[%clk 0:00:03.3]} 40... Rec6 {[%clk 0:00:04.6]} 41. Qa5 {[%clk 0:00:03.4]}
41... Rxc2+ {[%clk 0:00:04.2]} 42. Kd1 {[%clk 0:00:03.8]} 42... Rc1+ {[%clk
0:00:04.3]} 43. Kd2 {[%clk 0:00:04.1]} 43... R8c2# {[%clk 0:00:05]} 0-1

[Event "Late-Titled-Tuesday-Blitz-October-17-2023"]
[Site "Chess.com"]
[Date "2023.10.17"]
[Round "4"]
[White "Alimpic"]
[Black "mfwagnerpeixoto"]
[Result "1-0"]
[WhiteElo "2500"]
[BlackElo "2322"]
[TimeControl "180+1"]
[EndTime "14:39:06 PDT"]
[Termination "Alimpic won on time"]

1. d4 {[%clk 0:02:26.6]} 1... Nf6 {[%clk 0:02:55.6]} 2. Bf4 {[%clk 0:02:22.5]}
2... c5 {[%clk 0:02:49.8]} 3. e3 {[%clk 0:02:19.5]} 3... d6 {[%clk 0:02:42.8]}
4. Nf3 {[%clk 0:02:05.8]} 4... Nc6 {[%clk 0:02:33]} 5. Be2 {[%clk 0:02:00.2]}
5... Qb6 {[%clk 0:02:29.1]} 6. Na3 {[%clk 0:01:41.3]} 6... Be6 {[%clk 0:02:03]}
7. O-O {[%clk 0:01:36]} 7... a6 {[%clk 0:01:43.9]} 8. b3 {[%clk 0:00:38.4]} 8...
Nd5 {[%clk 0:01:30.7]} 9. Bg3 {[%clk 0:00:31.8]} 9... Nc3 {[%clk 0:01:29.5]} 10.
Qd2 {[%clk 0:00:32.3]} 10... Nxe2+ {[%clk 0:01:29.6]} 11. Qxe2 {[%clk
0:00:33.2]} 11... cxd4 {[%clk 0:00:48.1]} 12. exd4 {[%clk 0:00:30.6]} 12... Nxd4
{[%clk 0:00:44.8]} 13. Nxd4 {[%clk 0:00:31.5]} 13... Qxd4 {[%clk 0:00:45]} 14.
c4 {[%clk 0:00:21.6]} 14... g6 {[%clk 0:00:35.2]} 15. Rad1 {[%clk 0:00:17.9]}
15... Qc5 {[%clk 0:00:27]} 16. Nc2 {[%clk 0:00:16.7]} 16... Bg7 {[%clk
0:00:23.6]} 17. Ne3 {[%clk 0:00:17.1]} 17... O-O {[%clk 0:00:20]} 18. Nd5 {[%clk
0:00:17.4]} 18... Bxd5 {[%clk 0:00:12.7]} 19. Rxd5 {[%clk 0:00:18.3]} 19... Qc7
{[%clk 0:00:11.9]} 20. Rfd1 {[%clk 0:00:13.2]} 20... Rfe8 {[%clk 0:00:11]} 21.
c5 {[%clk 0:00:13.1]} 21... Rad8 {[%clk 0:00:09.5]} 22. cxd6 {[%clk 0:00:13.2]}
22... exd6 {[%clk 0:00:09.5]} 23. Qd3 {[%clk 0:00:13.4]} 23... Qc6 {[%clk
0:00:08]} 24. Bxd6 {[%clk 0:00:10.1]} 24... h5 {[%clk 0:00:07.3]} 25. h4 {[%clk
0:00:10.3]} 25... Re6 {[%clk 0:00:06.7]} 26. Bf4 {[%clk 0:00:08]} 26... Rde8
{[%clk 0:00:07.1]} 27. g3 {[%clk 0:00:07.1]} 27... Re1+ {[%clk 0:00:06.8]} 28.
Rxe1 {[%clk 0:00:07.7]} 28... Rxe1+ {[%clk 0:00:07.3]} 29. Kh2 {[%clk
0:00:07.6]} 29... Re8 {[%clk 0:00:07.8]} 30. Rd8 {[%clk 0:00:05.2]} 30... Rxd8
{[%clk 0:00:07.8]} 31. Qxd8+ {[%clk 0:00:06.1]} 31... Kh7 {[%clk 0:00:08.2]} 32.
Qd3 {[%clk 0:00:04.8]} 32... Qe6 {[%clk 0:00:07.5]} 33. Be3 {[%clk 0:00:05.1]}
33... Qg4 {[%clk 0:00:06.6]} 34. a4 {[%clk 0:00:05.3]} 34... Qb4 {[%clk
0:00:05.7]} 35. Kg2 {[%clk 0:00:05.5]} 35... Qe7 {[%clk 0:00:04.6]} 36. Kh2
{[%clk 0:00:05.2]} 36... Qb4 {[%clk 0:00:04.6]} 37. Kg2 {[%clk 0:00:05.3]} 37...
Qe7 {[%clk 0:00:04.8]} 38. Qd5 {[%clk 0:00:05.3]} 38... Qb4 {[%clk 0:00:03.9]}
39. Qc4 {[%clk 0:00:05]} 39... Qe7 {[%clk 0:00:03.1]} 40. b4 {[%clk 0:00:03.3]}
40... Bf8 {[%clk 0:00:01.3]} 41. b5 {[%clk 0:00:03.7]} 1-0

[Event "Late-Titled-Tuesday-Blitz-October-17-2023"]
[Site "Chess.com"]
[Date "2023.10.17"]
[Round "4"]
[White "jamengrand"]
[Black "imdvb6307"]
[Result "1/2-1/2"]
[WhiteElo "2339"]
[BlackElo "2496"]
[TimeControl "180+1"]
[EndTime "14:39:07 PDT"]
[Termination "Game drawn by repetition"]

1. e4 {[%clk 0:03:00.9]} 1... Nc6 {[%clk 0:02:59]} 2. Nc3 {[%clk 0:03:00.3]}
2... e5 {[%clk 0:02:58.5]} 3. Nf3 {[%clk 0:02:59.9]} 3... Nf6 {[%clk 0:02:57.7]}
4. d4 {[%clk 0:03:00.1]} 4... exd4 {[%clk 0:02:57.4]} 5. Nxd4 {[%clk 0:03:01]}
5... Bb4 {[%clk 0:02:57.4]} 6. Nxc6 {[%clk 0:03:00.5]} 6... bxc6 {[%clk
0:02:56.4]} 7. Bd3 {[%clk 0:03:01.4]} 7... O-O {[%clk 0:02:55.4]} 8. O-O {[%clk
0:03:01]} 8... d5 {[%clk 0:02:55.6]} 9. exd5 {[%clk 0:03:00.4]} 9... cxd5 {[%clk
0:02:55.8]} 10. h3 {[%clk 0:03:00.7]} 10... h6 {[%clk 0:02:46.7]} 11. Qf3 {[%clk
0:03:00.5]} 11... c6 {[%clk 0:02:47.1]} 12. Bf4 {[%clk 0:02:57.4]} 12... Bd6
{[%clk 0:02:41.6]} 13. Ne2 {[%clk 0:02:52]} 13... a5 {[%clk 0:01:53.5]} 14. Rfd1
{[%clk 0:02:45.8]} 14... Ba6 {[%clk 0:01:47.6]} 15. c4 {[%clk 0:02:45.5]} 15...
Bxf4 {[%clk 0:01:32]} 16. Nxf4 {[%clk 0:02:43.6]} 16... Qb6 {[%clk 0:01:31.5]}
17. cxd5 {[%clk 0:02:17.4]} 17... cxd5 {[%clk 0:01:30.2]} 18. Bxa6 {[%clk
0:02:14.5]} 18... Rxa6 {[%clk 0:01:29.4]} 19. b3 {[%clk 0:02:11.9]} 19... a4
{[%clk 0:01:29.6]} 20. Nxd5 {[%clk 0:02:01.9]} 20... Nxd5 {[%clk 0:01:28.5]} 21.
Qxd5 {[%clk 0:02:02.8]} 21... axb3 {[%clk 0:01:28.5]} 22. Qxb3 {[%clk
0:02:03.1]} 22... Qxb3 {[%clk 0:01:27.2]} 23. axb3 {[%clk 0:02:02.8]} 23... Rb6
{[%clk 0:01:26.9]} 24. Rd3 {[%clk 0:01:57.5]} 24... Rc8 {[%clk 0:01:25.9]} 25.
Rb1 {[%clk 0:01:36.9]} 25... Rc2 {[%clk 0:01:19.4]} 26. b4 {[%clk 0:01:36.6]}
26... Rc4 {[%clk 0:01:18.7]} 27. b5 {[%clk 0:01:34.9]} 27... Rc5 {[%clk
0:01:17.8]} 28. Rdb3 {[%clk 0:01:31]} 28... g5 {[%clk 0:01:17.8]} 29. g3 {[%clk
0:01:30.4]} 29... h5 {[%clk 0:01:09.1]} 30. Rb4 {[%clk 0:01:27.7]} 30... f5
{[%clk 0:01:02]} 31. Kg2 {[%clk 0:01:14.3]} 31... g4 {[%clk 0:01:01.8]} 32. f3
{[%clk 0:01:08.1]} 32... Rc2+ {[%clk 0:01:00.9]} 33. Kg1 {[%clk 0:01:03.2]}
33... gxf3 {[%clk 0:00:59.6]} 34. Rf4 {[%clk 0:01:02.6]} 34... Rc5 {[%clk
0:00:44.1]} 35. Rfb4 {[%clk 0:00:52]} 35... Rc2 {[%clk 0:00:43.2]} 36. R4b2
{[%clk 0:00:43.6]} 36... Rxb2 {[%clk 0:00:29.5]} 37. Rxb2 {[%clk 0:00:43.2]}
37... Kf7 {[%clk 0:00:22.6]} 38. Kf2 {[%clk 0:00:40.1]} 38... Ke6 {[%clk
0:00:20]} 39. Kxf3 {[%clk 0:00:39.4]} 39... Ke5 {[%clk 0:00:18.7]} 40. Rb4
{[%clk 0:00:37.8]} 40... Ke6 {[%clk 0:00:15.4]} 41. Kf4 {[%clk 0:00:37.7]} 41...
Kf6 {[%clk 0:00:15.3]} 42. h4 {[%clk 0:00:28]} 42... Ke6 {[%clk 0:00:11.7]} 43.
Kg5 {[%clk 0:00:28.1]} 43... Ke5 {[%clk 0:00:12.1]} 44. Kxh5 {[%clk 0:00:24.1]}
44... Rb8 {[%clk 0:00:10.8]} 45. Kh6 {[%clk 0:00:15.7]} 45... Kf6 {[%clk
0:00:10.5]} 46. Kh7 {[%clk 0:00:15.8]} 46... Rb7+ {[%clk 0:00:10.8]} 47. Kh6
{[%clk 0:00:13.9]} 47... Rb8 {[%clk 0:00:11.2]} 48. Kh7 {[%clk 0:00:13.8]} 48...
Rb7+ {[%clk 0:00:11.5]} 49. Kh6 {[%clk 0:00:07.4]} 49... Rb8 {[%clk 0:00:11.7]}
1/2-1/2